[Event "December 19 Early 2023"]
[Site "https://www.chess.com"]
[Date "2023.12.19"]
[Round "5"]
[White "Dominguez Rincon, Miller Duvan"]
[Black "Mesquita, Eduardo Barbosa"]
[Result "0-1"]
[Board "199"]
[TimeControl "180+1"]
[WhiteFideId "4406583"]
[BlackFideId "22757163"]
[WhiteElo "1960"]
[BlackElo "1953"]
[WhiteTeam "COL"]
[BlackTeam "BRA"]
[WhiteClock "0:00:02"]
[BlackClock "0:00:04"]

1. e4 {[%clk 0:03:00]}  c5 {[%clk 0:03:00]} 2. Nf3 {[%clk 0:03:00]}  d6 {[%clk 0:03:00]} 3. d4 {[%clk 0:03:00]}  cxd4 {[%clk 0:03:01]} 4. Nxd4 {[%clk 0:03:01]}  Nf6 {[%clk 0:03:02]} 5. Nc3 {[%clk 0:03:01]}  a6 {[%clk 0:03:02]} 6. Bg5 {[%clk 0:02:59]}  e6 {[%clk 0:03:03]} 7. f4 {[%clk 0:02:59]}  Nbd7 {[%clk 0:03:03]} 8. Qf3 {[%clk 0:02:56]}  Qc7 {[%clk 0:03:04]} 9. O-O-O {[%clk 0:02:56]}  b5 {[%clk 0:03:03]} 10. Bd3 {[%clk 0:02:54]}  Bb7 {[%clk 0:03:03]} 11. Rhe1 {[%clk 0:02:51]}  Be7 {[%clk 0:03:04]} 12. Bxf6 {[%clk 0:02:48]}  Nxf6 {[%clk 0:03:04]} 13. Qg3 {[%clk 0:02:45]}  O-O {[%clk 0:03:01]} 14. e5 {[%clk 0:02:44]}  Nh5 {[%clk 0:02:58]} 15. Qf2 {[%clk 0:02:07]}  g6 {[%clk 0:02:46]} 16. g4 {[%clk 0:02:03]}  Ng7 {[%clk 0:02:47]} 17. h4 {[%clk 0:01:55]}  h5 {[%clk 0:02:35]} 18. gxh5 {[%clk 0:01:51]}  Nxh5 {[%clk 0:02:36]} 19. Bxg6 {[%clk 0:01:38]}  fxg6 {[%clk 0:02:36]} 20. Nxe6 {[%clk 0:01:38]}  Qb8 {[%clk 0:02:27]} 21. Rg1 {[%clk 0:00:30]}  Kh7 {[%clk 0:02:27]} 22. Nd5 {[%clk 0:00:20]}  Bxd5 {[%clk 0:02:12]} 23. Rxd5 {[%clk 0:00:21]}  dxe5 {[%clk 0:02:12]} 24. Qg2 {[%clk 0:00:17]}  Rf6 {[%clk 0:02:06]} 25. Ng5+ {[%clk 0:00:15]}  Kh8 {[%clk 0:02:05]} 26. Rd7 {[%clk 0:00:14]}  Qe8 {[%clk 0:02:03]} 27. Qb7 {[%clk 0:00:12]}  Bc5 {[%clk 0:01:34]} 28. Rh7+ {[%clk 0:00:10]}  Kg8 {[%clk 0:01:35]} 29. Rxh5 {[%clk 0:00:08]}  Ra7 {[%clk 0:01:28]} 30. Qd5+ {[%clk 0:00:07]}  Raf7 {[%clk 0:01:19]} 31. Nxf7 {[%clk 0:00:07]}  Bxg1 {[%clk 0:01:19]} 32. Nh6+ {[%clk 0:00:06]}  Kg7 {[%clk 0:01:18]} 33. Rxe5 {[%clk 0:00:06]}  Be3+ {[%clk 0:01:10]} 34. Kb1 {[%clk 0:00:05]}  Rxf4 {[%clk 0:01:09]} 35. a3 {[%clk 0:00:04]}  Rf1+ {[%clk 0:00:43]} 36. Ka2 {[%clk 0:00:04]}  Qf8 {[%clk 0:00:39]} 37. Rxe3 {[%clk 0:00:03]}  Kxh6 {[%clk 0:00:39]} 38. Qd2 {[%clk 0:00:02]}  Kh7 {[%clk 0:00:29]} 39. Rd3 {[%clk 0:00:02]}  Qf7+ {[%clk 0:00:24]} 40. b3 {[%clk 0:00:02]}  Qf6 {[%clk 0:00:04]} 41. Rd7+ {[%clk 0:00:03]}  Kg8 {[%clk 0:00:04]} 42. Rd8+ {[%clk 0:00:02]}  Kf7 {[%clk 0:00:05]} 43. Rd7+ {[%clk 0:00:02]}  Ke8 {[%clk 0:00:04]} 44. Rd3 {[%clk 0:00:02]}  Ra1# {[%clk 0:00:04]} 0-1

[Event "December 19 Early 2023"]
[Site "https://www.chess.com"]
[Date "2023.12.19"]
[Round "5"]
[White "Vargas, Mauricio"]
[Black "Buscar, Michael"]
[Result "0-1"]
[Board "203"]
[TimeControl "180+1"]
[WhiteFideId "4404572"]
[BlackFideId "2603616"]
[WhiteElo "1982"]
[BlackElo "2010"]
[WhiteTeam "COL"]
[BlackTeam "CAN"]
[WhiteClock "0:01:23"]
[BlackClock "0:01:25"]

1. e4 {[%clk 0:03:00]}  c5 {[%clk 0:02:59]} 2. Nc3 {[%clk 0:02:59]}  g6 {[%clk 0:02:58]} 3. f4 {[%clk 0:03:00]}  Bg7 {[%clk 0:02:58]} 4. Nf3 {[%clk 0:03:01]}  Nc6 {[%clk 0:02:57]} 5. Bb5 {[%clk 0:03:00]}  Nd4 {[%clk 0:02:56]} 6. Bf1 {[%clk 0:02:56]}  d6 {[%clk 0:02:52]} 7. h3 {[%clk 0:02:56]}  a6 {[%clk 0:02:42]} 8. Nd5 {[%clk 0:02:55]}  e6 {[%clk 0:02:26]} 9. Ne3 {[%clk 0:02:55]}  Ne7 {[%clk 0:02:25]} 10. d3 {[%clk 0:02:55]}  Nec6 {[%clk 0:02:24]} 11. c3 {[%clk 0:02:55]}  Nxf3+ {[%clk 0:02:23]} 12. Qxf3 {[%clk 0:02:55]}  b5 {[%clk 0:02:13]} 13. g4 {[%clk 0:02:54]}  Bb7 {[%clk 0:02:13]} 14. Bg2 {[%clk 0:02:54]}  Qh4+ {[%clk 0:02:11]} 15. Qf2 {[%clk 0:02:51]}  Qxf2+ {[%clk 0:02:10]} 16. Kxf2 {[%clk 0:02:52]}  b4 {[%clk 0:02:06]} 17. Bd2 {[%clk 0:02:49]}  h5 {[%clk 0:02:00]} 18. Nc4 {[%clk 0:02:45]}  Ke7 {[%clk 0:01:57]} 19. f5 {[%clk 0:02:28]}  Ne5 {[%clk 0:01:50]} 20. Ke2 {[%clk 0:02:10]}  Nxc4 {[%clk 0:01:43]} 21. dxc4 {[%clk 0:02:08]}  bxc3 {[%clk 0:01:44]} 22. Bxc3 {[%clk 0:02:06]}  Bxc3 {[%clk 0:01:44]} 23. bxc3 {[%clk 0:02:06]}  gxf5 {[%clk 0:01:38]} 24. exf5 {[%clk 0:02:05]}  Bxg2 {[%clk 0:01:37]} 25. Rhg1 {[%clk 0:01:59]}  Bxh3 {[%clk 0:01:35]} 26. fxe6 {[%clk 0:01:50]}  Bxg4+ {[%clk 0:01:35]} 27. Kd2 {[%clk 0:01:48]}  fxe6 {[%clk 0:01:33]} 28. Rae1 {[%clk 0:01:49]}  Rab8 {[%clk 0:01:32]} 29. Kc1 {[%clk 0:01:44]}  Rhf8 {[%clk 0:01:30]} 30. Re3 {[%clk 0:01:38]}  Rf2 {[%clk 0:01:27]} 31. Rge1 {[%clk 0:01:23]}  Rxa2 {[%clk 0:01:25]} 0-1

[Event "December 19 Early 2023"]
[Site "https://www.chess.com"]
[Date "2023.12.19"]
[Round "5"]
[White "Ernst, Luca"]
[Black "Masterisback04"]
[Result "1-0"]
[Board "204"]
[TimeControl "180+1"]
[WhiteFideId "45117055"]
[WhiteElo "1973"]
[BlackElo "1737"]
[WhiteTeam "FRA"]
[WhiteClock "0:00:12"]
[BlackClock "0:00:33"]

1. a3 {[%clk 0:02:54]}  c6 {[%clk 0:02:58]} 2. b4 {[%clk 0:02:50]}  Nf6 {[%clk 0:02:55]} 3. Bb2 {[%clk 0:02:49]}  g6 {[%clk 0:02:54]} 4. g4 {[%clk 0:02:45]}  h6 {[%clk 0:02:47]} 5. Bg2 {[%clk 0:02:38]}  Bg7 {[%clk 0:02:32]} 6. d3 {[%clk 0:02:34]}  d5 {[%clk 0:02:32]} 7. h3 {[%clk 0:02:31]}  O-O {[%clk 0:02:32]} 8. Nd2 {[%clk 0:02:28]}  Nbd7 {[%clk 0:02:24]} 9. f4 {[%clk 0:02:11]}  Qc7 {[%clk 0:02:08]} 10. e3 {[%clk 0:02:09]}  e5 {[%clk 0:02:06]} 11. Ngf3 {[%clk 0:02:02]}  exf4 {[%clk 0:02:05]} 12. exf4 {[%clk 0:02:03]}  Qxf4 {[%clk 0:02:05]} 13. O-O {[%clk 0:02:03]}  Nxg4 {[%clk 0:01:37]} 14. Bxg7 {[%clk 0:01:40]}  Ne3 {[%clk 0:01:36]} 15. Qc1 {[%clk 0:01:17]}  Kxg7 {[%clk 0:01:35]} 16. Rf2 {[%clk 0:01:08]}  Nxg2 {[%clk 0:01:28]} 17. Kxg2 {[%clk 0:01:06]}  Ne5 {[%clk 0:01:11]} 18. Qb2 {[%clk 0:00:58]}  f6 {[%clk 0:01:11]} 19. Raf1 {[%clk 0:00:46]}  Nxf3 {[%clk 0:01:07]} 20. Nxf3 {[%clk 0:00:41]}  Qf5 {[%clk 0:00:59]} 21. Ng1 {[%clk 0:00:34]}  Qg5+ {[%clk 0:00:58]} 22. Kh2 {[%clk 0:00:31]}  Bf5 {[%clk 0:00:58]} 23. Qd4 {[%clk 0:00:23]}  Rae8 {[%clk 0:00:56]} 24. Qxa7 {[%clk 0:00:21]}  Re7 {[%clk 0:00:55]} 25. Rg2 {[%clk 0:00:15]}  Qh5 {[%clk 0:00:51]} 26. Qf2 {[%clk 0:00:14]}  Kh7 {[%clk 0:00:49]} 27. Ne2 {[%clk 0:00:10]}  Rfe8 {[%clk 0:00:49]} 28. Nf4 {[%clk 0:00:10]}  Qxh3+ {[%clk 0:00:48]} 29. Nxh3 {[%clk 0:00:10]}  Re3 {[%clk 0:00:47]} 30. Ng1 {[%clk 0:00:08]}  R8e5 {[%clk 0:00:41]} 31. Rg3 {[%clk 0:00:08]}  Rxg3 {[%clk 0:00:35]} 32. Qxg3 {[%clk 0:00:09]}  h5 {[%clk 0:00:32]} 33. Qxe5 {[%clk 0:00:09]}  fxe5 {[%clk 0:00:32]} 34. a4 {[%clk 0:00:09]}  Kg7 {[%clk 0:00:32]} 35. a5 {[%clk 0:00:09]}  Kf7 {[%clk 0:00:32]} 36. Ra1 {[%clk 0:00:08]}  Ke6 {[%clk 0:00:33]} 37. a6 {[%clk 0:00:09]}  bxa6 {[%clk 0:00:33]} 38. Rxa6 {[%clk 0:00:10]}  Kd6 {[%clk 0:00:34]} 39. b5 {[%clk 0:00:10]}  Bd7 {[%clk 0:00:34]} 40. bxc6 {[%clk 0:00:10]}  Bxc6 {[%clk 0:00:35]} 41. Nf3 {[%clk 0:00:10]}  Kc5 {[%clk 0:00:35]} 42. Rxc6+ {[%clk 0:00:09]}  Kxc6 {[%clk 0:00:35]} 43. Nxe5+ {[%clk 0:00:10]}  Kd6 {[%clk 0:00:35]} 44. Nxg6 {[%clk 0:00:10]}  Kc5 {[%clk 0:00:36]} 45. c3 {[%clk 0:00:10]}  d4 {[%clk 0:00:36]} 46. c4 {[%clk 0:00:09]}  Kb4 {[%clk 0:00:35]} 47. Nf4 {[%clk 0:00:09]}  Kc5 {[%clk 0:00:35]} 48. Kg3 {[%clk 0:00:09]}  h4+ {[%clk 0:00:35]} 49. Kxh4 {[%clk 0:00:10]}  Kd6 {[%clk 0:00:35]} 50. Kg5 {[%clk 0:00:10]}  Ke5 {[%clk 0:00:36]} 51. Ne2 {[%clk 0:00:10]}  Kd6 {[%clk 0:00:37]} 52. Nxd4 {[%clk 0:00:11]}  Kc5 {[%clk 0:00:33]} 53. Nc2 {[%clk 0:00:12]} 1-0

[Event "December 19 Early 2023"]
[Site "https://www.chess.com"]
[Date "2023.12.19"]
[Round "5"]
[White "Can, Melih Kaan"]
[Black "Larina, Maria"]
[Result "1-0"]
[Board "206"]
[TimeControl "180+1"]
[WhiteFideId "6317383"]
[BlackFideId "24113182"]
[WhiteElo "2022"]
[BlackElo "1848"]
[WhiteTeam "TUR"]
[BlackTeam "FID"]
[WhiteClock "0:00:10"]
[BlackClock "0:00:03"]

1. e4 {[%clk 0:02:52]}  c6 {[%clk 0:02:59]} 2. d4 {[%clk 0:02:51]}  d5 {[%clk 0:03:00]} 3. exd5 {[%clk 0:02:51]}  cxd5 {[%clk 0:03:00]} 4. Bd3 {[%clk 0:02:52]}  Nc6 {[%clk 0:03:00]} 5. c3 {[%clk 0:02:52]}  e5 {[%clk 0:03:00]} 6. dxe5 {[%clk 0:02:51]}  Nxe5 {[%clk 0:03:01]} 7. Bc2 {[%clk 0:02:52]}  Nf6 {[%clk 0:02:58]} 8. Ne2 {[%clk 0:02:52]}  Bc5 {[%clk 0:02:54]} 9. O-O {[%clk 0:02:48]}  O-O {[%clk 0:02:54]} 10. Bg5 {[%clk 0:02:48]}  Be7 {[%clk 0:02:45]} 11. Nd4 {[%clk 0:02:45]}  h6 {[%clk 0:02:39]} 12. Bh4 {[%clk 0:02:44]}  Re8 {[%clk 0:02:20]} 13. Re1 {[%clk 0:02:42]}  Nc4 {[%clk 0:02:03]} 14. Qc1 {[%clk 0:02:30]}  Ne4 {[%clk 0:01:36]} 15. Bxe7 {[%clk 0:02:26]}  Rxe7 {[%clk 0:01:36]} 16. b3 {[%clk 0:02:23]}  Ncd6 {[%clk 0:01:33]} 17. f3 {[%clk 0:02:19]}  Nf6 {[%clk 0:01:30]} 18. Nd2 {[%clk 0:02:12]}  Bd7 {[%clk 0:01:22]} 19. Nf1 {[%clk 0:02:08]}  Rc8 {[%clk 0:01:19]} 20. Qd2 {[%clk 0:02:06]}  Nb5 {[%clk 0:01:04]} 21. Nxb5 {[%clk 0:01:55]}  Bxb5 {[%clk 0:01:05]} 22. Ng3 {[%clk 0:01:49]}  Rxe1+ {[%clk 0:01:01]} 23. Rxe1 {[%clk 0:01:48]}  Qb6+ {[%clk 0:01:01]} 24. Kh1 {[%clk 0:01:44]}  Qc7 {[%clk 0:00:57]} 25. Re3 {[%clk 0:01:34]}  a5 {[%clk 0:00:34]} 26. Nf5 {[%clk 0:01:31]}  Bc6 {[%clk 0:00:25]} 27. Ne7+ {[%clk 0:01:31]}  Kf8 {[%clk 0:00:23]} 28. Nxc8 {[%clk 0:01:31]}  Qxc8 {[%clk 0:00:23]} 29. Qd4 {[%clk 0:01:19]}  Kg8 {[%clk 0:00:20]} 30. Qf4 {[%clk 0:01:12]}  Qd7 {[%clk 0:00:19]} 31. Qf5 {[%clk 0:01:08]}  Qxf5 {[%clk 0:00:18]} 32. Bxf5 {[%clk 0:01:08]}  g6 {[%clk 0:00:19]} 33. Bh3 {[%clk 0:01:06]}  Kf8 {[%clk 0:00:19]} 34. Kg1 {[%clk 0:01:06]}  Ne8 {[%clk 0:00:18]} 35. Kf2 {[%clk 0:01:04]}  Nd6 {[%clk 0:00:19]} 36. Ke2 {[%clk 0:00:59]}  Nb5 {[%clk 0:00:19]} 37. Kd2 {[%clk 0:00:49]}  d4 {[%clk 0:00:19]} 38. cxd4 {[%clk 0:00:49]}  Nxd4 {[%clk 0:00:20]} 39. Rd3 {[%clk 0:00:49]}  Nb5 {[%clk 0:00:19]} 40. Re3 {[%clk 0:00:48]}  f5 {[%clk 0:00:17]} 41. g4 {[%clk 0:00:45]}  f4 {[%clk 0:00:16]} 42. Rd3 {[%clk 0:00:38]}  g5 {[%clk 0:00:14]} 43. Bf1 {[%clk 0:00:36]}  Ke7 {[%clk 0:00:13]} 44. Be2 {[%clk 0:00:36]}  Nd6 {[%clk 0:00:12]} 45. Kc2 {[%clk 0:00:28]}  Nf7 {[%clk 0:00:12]} 46. a4 {[%clk 0:00:27]}  Ne5 {[%clk 0:00:12]} 47. Rc3 {[%clk 0:00:26]}  Kd6 {[%clk 0:00:11]} 48. Bd1 {[%clk 0:00:23]}  Nd7 {[%clk 0:00:08]} 49. Rd3+ {[%clk 0:00:23]}  Ke5 {[%clk 0:00:07]} 50. Kc3 {[%clk 0:00:20]}  Nc5 {[%clk 0:00:07]} 51. Rd2 {[%clk 0:00:19]}  Bd5 {[%clk 0:00:07]} 52. Re2+ {[%clk 0:00:20]}  Kd6 {[%clk 0:00:07]} 53. Re8 {[%clk 0:00:19]}  Ne6 {[%clk 0:00:04]} 54. Rh8 {[%clk 0:00:19]}  Ke5 {[%clk 0:00:03]} 55. Rxh6 {[%clk 0:00:19]}  Bc6 {[%clk 0:00:03]} 56. Rh8 {[%clk 0:00:18]}  Bd5 {[%clk 0:00:03]} 57. Re8 {[%clk 0:00:18]}  Bc6 {[%clk 0:00:04]} 58. Re7 {[%clk 0:00:18]}  Bd5 {[%clk 0:00:04]} 59. Be2 {[%clk 0:00:16]}  Kd6 {[%clk 0:00:04]} 60. Re8 {[%clk 0:00:13]}  Bc6 {[%clk 0:00:05]} 61. Rh8 {[%clk 0:00:12]}  Bd5 {[%clk 0:00:05]} 62. Rh6 {[%clk 0:00:12]}  Ke5 {[%clk 0:00:05]} 63. Bc4 {[%clk 0:00:12]}  Bxc4 {[%clk 0:00:05]} 64. Kxc4 {[%clk 0:00:11]}  Nd4 {[%clk 0:00:05]} 65. Rh8 {[%clk 0:00:10]}  Nxf3 {[%clk 0:00:05]} 66. Re8+ {[%clk 0:00:11]}  Kf6 {[%clk 0:00:06]} 67. h3 {[%clk 0:00:11]}  Ng1 {[%clk 0:00:05]} 68. Rb8 {[%clk 0:00:10]}  f3 {[%clk 0:00:05]} 69. Rf8+ {[%clk 0:00:08]}  Ke7 {[%clk 0:00:05]} 70. Rf5 {[%clk 0:00:08]}  Nxh3 {[%clk 0:00:04]} 71. Rxf3 {[%clk 0:00:08]}  Nf4 {[%clk 0:00:04]} 72. Re3+ {[%clk 0:00:09]}  Ne6 {[%clk 0:00:04]} 73. Kd5 {[%clk 0:00:09]}  Kd7 {[%clk 0:00:04]} 74. Rxe6 {[%clk 0:00:10]}  Kc7 {[%clk 0:00:03]} 75. Rg6 {[%clk 0:00:10]} 1-0

[Event "December 19 Early 2023"]
[Site "https://www.chess.com"]
[Date "2023.12.19"]
[Round "5"]
[White "Hobson, Kenneth"]
[Black "Zhuk, Valeriy"]
[Result "0-1"]
[Board "208"]
[TimeControl "180+1"]
[WhiteFideId "480819"]
[BlackFideId "24151254"]
[WhiteElo "1953"]
[BlackElo "2148"]
[WhiteTeam "ENG"]
[BlackTeam "RUS"]
[WhiteClock "0:01:14"]
[BlackClock "0:00:36"]

1. e4 {[%clk 0:03:00]}  c5 {[%clk 0:02:58]} 2. Nf3 {[%clk 0:03:00]}  e6 {[%clk 0:02:56]} 3. b3 {[%clk 0:03:00]}  Nc6 {[%clk 0:02:41]} 4. Bb2 {[%clk 0:03:00]}  a6 {[%clk 0:02:37]} 5. c4 {[%clk 0:02:58]}  d6 {[%clk 0:02:34]} 6. Nc3 {[%clk 0:02:58]}  e5 {[%clk 0:02:30]} 7. g3 {[%clk 0:02:50]}  g6 {[%clk 0:02:25]} 8. Bg2 {[%clk 0:02:50]}  Bg7 {[%clk 0:02:24]} 9. O-O {[%clk 0:02:50]}  Nge7 {[%clk 0:02:25]} 10. Nd5 {[%clk 0:02:47]}  O-O {[%clk 0:02:25]} 11. d3 {[%clk 0:02:43]}  h6 {[%clk 0:02:24]} 12. Nd2 {[%clk 0:02:41]}  f5 {[%clk 0:02:11]} 13. f4 {[%clk 0:02:40]}  Be6 {[%clk 0:01:54]} 14. exf5 {[%clk 0:02:34]}  Nxf5 {[%clk 0:01:52]} 15. Re1 {[%clk 0:02:08]}  Ncd4 {[%clk 0:01:24]} 16. Nf3 {[%clk 0:01:56]}  Bxd5 {[%clk 0:01:09]} 17. cxd5 {[%clk 0:01:57]}  exf4 {[%clk 0:01:05]} 18. Nxd4 {[%clk 0:01:39]}  Bxd4+ {[%clk 0:00:48]} 19. Bxd4 {[%clk 0:01:39]}  Nxd4 {[%clk 0:00:48]} 20. Qg4 {[%clk 0:01:36]}  Qg5 {[%clk 0:00:47]} 21. Qxg5 {[%clk 0:01:29]}  hxg5 {[%clk 0:00:48]} 22. Re7 {[%clk 0:01:28]}  Rf7 {[%clk 0:00:39]} 23. Rae1 {[%clk 0:01:22]}  f3 {[%clk 0:00:36]} 24. Bh3 {[%clk 0:01:14]}  f2+ {[%clk 0:00:36]} 0-1

[Event "December 19 Early 2023"]
[Site "https://www.chess.com"]
[Date "2023.12.19"]
[Round "5"]
[White "Floresvillar Gonzalez, Luis Migu"]
[Black "Kuhn, Clement"]
[Result "0-1"]
[Board "212"]
[TimeControl "180+1"]
[WhiteFideId "5100542"]
[BlackFideId "36099775"]
[WhiteElo "2040"]
[BlackElo "2251"]
[WhiteTeam "MEX"]
[BlackTeam "FRA"]
[WhiteClock "0:00:01"]
[BlackClock "0:01:35"]

1. d4 {[%clk 0:02:52]}  Nf6 {[%clk 0:02:59]} 2. c3 {[%clk 0:02:52]}  g6 {[%clk 0:02:59]} 3. Bg5 {[%clk 0:02:52]}  Bg7 {[%clk 0:03:00]} 4. Nd2 {[%clk 0:02:52]}  d6 {[%clk 0:02:56]} 5. Ngf3 {[%clk 0:02:48]}  O-O {[%clk 0:02:56]} 6. e4 {[%clk 0:02:47]}  Nbd7 {[%clk 0:02:56]} 7. d5 {[%clk 0:02:41]}  h6 {[%clk 0:02:54]} 8. Bh4 {[%clk 0:02:39]}  g5 {[%clk 0:02:54]} 9. Bg3 {[%clk 0:02:39]}  Nh5 {[%clk 0:02:54]} 10. Bd3 {[%clk 0:02:36]}  Nxg3 {[%clk 0:02:53]} 11. hxg3 {[%clk 0:02:35]}  c6 {[%clk 0:02:53]} 12. dxc6 {[%clk 0:02:29]}  bxc6 {[%clk 0:02:54]} 13. Qe2 {[%clk 0:02:26]}  Rb8 {[%clk 0:02:51]} 14. O-O-O {[%clk 0:02:18]}  Qa5 {[%clk 0:02:46]} 15. Bc4 {[%clk 0:02:08]}  Rxb2 {[%clk 0:02:41]} 16. Qd3 {[%clk 0:01:30]}  Nc5 {[%clk 0:02:37]} 17. Qe3 {[%clk 0:01:05]}  Rb6 {[%clk 0:01:52]} 18. Nb1 {[%clk 0:00:14]}  Ba6 {[%clk 0:01:34]} 19. Bxa6 {[%clk 0:00:05]}  Qxa2 {[%clk 0:01:35]} 20. Bd3 {[%clk 0:00:01]}  Qb2# {[%clk 0:01:35]} 0-1

[Event "December 19 Early 2023"]
[Site "https://www.chess.com"]
[Date "2023.12.19"]
[Round "5"]
[White "Vila Dupla, Aurelio"]
[Black "BeReal24"]
[Result "1/2-1/2"]
[Board "215"]
[TimeControl "180+1"]
[WhiteFideId "2203383"]
[WhiteElo "2009"]
[BlackElo "2504"]
[WhiteTeam "ESP"]
[WhiteClock "0:00:07"]
[BlackClock "0:00:05"]

1. Nf3 {[%clk 0:03:00]}  Nf6 {[%clk 0:02:56]} 2. d4 {[%clk 0:03:00]}  b6 {[%clk 0:02:55]} 3. g3 {[%clk 0:02:59]}  Bb7 {[%clk 0:01:14]} 4. Bg2 {[%clk 0:02:57]}  e6 {[%clk 0:01:10]} 5. O-O {[%clk 0:02:56]}  c5 {[%clk 0:01:09]} 6. c4 {[%clk 0:02:54]}  cxd4 {[%clk 0:01:08]} 7. Qxd4 {[%clk 0:02:54]}  Be7 {[%clk 0:01:06]} 8. Nc3 {[%clk 0:02:51]}  O-O {[%clk 0:01:05]} 9. Rd1 {[%clk 0:02:51]}  Nc6 {[%clk 0:01:04]} 10. Qf4 {[%clk 0:02:51]}  Qb8 {[%clk 0:01:03]} 11. b3 {[%clk 0:02:51]}  Qxf4 {[%clk 0:01:00]} 12. Bxf4 {[%clk 0:02:50]}  Rac8 {[%clk 0:01:00]} 13. Bd6 {[%clk 0:02:42]}  Bxd6 {[%clk 0:00:59]} 14. Rxd6 {[%clk 0:02:42]}  Ne7 {[%clk 0:01:00]} 15. Ne5 {[%clk 0:01:54]}  Bxg2 {[%clk 0:00:58]} 16. Kxg2 {[%clk 0:01:55]}  Nf5 {[%clk 0:00:57]} 17. Rd3 {[%clk 0:01:52]}  d6 {[%clk 0:00:54]} 18. Nf3 {[%clk 0:01:44]}  Rfd8 {[%clk 0:00:41]} 19. e4 {[%clk 0:01:33]}  Ne7 {[%clk 0:00:41]} 20. Rad1 {[%clk 0:01:33]}  d5 {[%clk 0:00:38]} 21. exd5 {[%clk 0:01:25]}  exd5 {[%clk 0:00:39]} 22. Nxd5 {[%clk 0:01:19]}  Nexd5 {[%clk 0:00:38]} 23. cxd5 {[%clk 0:01:19]}  Rc2 {[%clk 0:00:39]} 24. a4 {[%clk 0:00:56]}  Ne4 {[%clk 0:00:38]} 25. Rd4 {[%clk 0:00:43]}  Nxf2 {[%clk 0:00:35]} 26. R1d2 {[%clk 0:00:43]}  Rxd2 {[%clk 0:00:35]} 27. Rxd2 {[%clk 0:00:42]}  Ne4 {[%clk 0:00:34]} 28. Rd4 {[%clk 0:00:34]}  Nd6 {[%clk 0:00:28]} 29. Ne5 {[%clk 0:00:32]}  Re8 {[%clk 0:00:28]} 30. Nc6 {[%clk 0:00:31]}  f6 {[%clk 0:00:26]} 31. Nxa7 {[%clk 0:00:28]}  Re2+ {[%clk 0:00:25]} 32. Kf3 {[%clk 0:00:22]}  Rb2 {[%clk 0:00:24]} 33. Rd3 {[%clk 0:00:19]}  Kf7 {[%clk 0:00:24]} 34. Nb5 {[%clk 0:00:18]}  Nxb5 {[%clk 0:00:24]} 35. axb5 {[%clk 0:00:19]}  Ke7 {[%clk 0:00:25]} 36. d6+ {[%clk 0:00:19]}  Kd7 {[%clk 0:00:25]} 37. h4 {[%clk 0:00:19]}  Rc2 {[%clk 0:00:25]} 38. Rd5 {[%clk 0:00:09]}  Rc3+ {[%clk 0:00:23]} 39. Kg4 {[%clk 0:00:09]}  Rxb3 {[%clk 0:00:21]} 40. h5 {[%clk 0:00:10]}  Re3 {[%clk 0:00:19]} 41. h6 {[%clk 0:00:08]}  gxh6 {[%clk 0:00:15]} 42. Kf5 {[%clk 0:00:07]}  Re6 {[%clk 0:00:12]} 43. g4 {[%clk 0:00:03]}  Rxd6 {[%clk 0:00:12]} 44. Rxd6+ {[%clk 0:00:02]}  Kxd6 {[%clk 0:00:13]} 45. Kxf6 {[%clk 0:00:03]}  Kc5 {[%clk 0:00:08]} 46. Kg7 {[%clk 0:00:03]}  Kxb5 {[%clk 0:00:08]} 47. Kxh6 {[%clk 0:00:04]}  Ka4 {[%clk 0:00:07]} 48. Kxh7 {[%clk 0:00:04]}  b5 {[%clk 0:00:08]} 49. g5 {[%clk 0:00:05]}  b4 {[%clk 0:00:08]} 50. g6 {[%clk 0:00:06]}  b3 {[%clk 0:00:09]} 51. g7 {[%clk 0:00:07]}  b2 {[%clk 0:00:08]} 52. g8=Q {[%clk 0:00:08]}  b1=Q+ {[%clk 0:00:09]} 53. Kh8 {[%clk 0:00:08]}  Qb2+ {[%clk 0:00:08]} 54. Qg7 {[%clk 0:00:08]}  Qxg7+ {[%clk 0:00:05]} 55. Kxg7 {[%clk 0:00:07]} 1/2-1/2

[Event "December 19 Early 2023"]
[Site "https://www.chess.com"]
[Date "2023.12.19"]
[Round "5"]
[White "Nikulina, Alena"]
[Black "Bach Ngoc Thuy Duong"]
[Result "0-1"]
[Board "220"]
[TimeControl "180+1"]
[WhiteFideId "4172051"]
[BlackFideId "12408956"]
[WhiteElo "1627"]
[BlackElo "1970"]
[WhiteTeam "RUS"]
[BlackTeam "VIE"]
[WhiteClock "0:00:00"]
[BlackClock "0:00:12"]

1. e4 {[%clk 0:03:00]}  c5 {[%clk 0:02:53]} 2. Nf3 {[%clk 0:03:00]}  d6 {[%clk 0:02:51]} 3. c3 {[%clk 0:02:58]}  Nf6 {[%clk 0:02:50]} 4. h3 {[%clk 0:02:58]}  g6 {[%clk 0:02:40]} 5. Bd3 {[%clk 0:02:55]}  Bg7 {[%clk 0:02:40]} 6. Bc2 {[%clk 0:02:56]}  O-O {[%clk 0:02:32]} 7. O-O {[%clk 0:02:55]}  b5 {[%clk 0:02:26]} 8. d4 {[%clk 0:02:50]}  Bb7 {[%clk 0:02:20]} 9. Re1 {[%clk 0:02:48]}  cxd4 {[%clk 0:02:05]} 10. cxd4 {[%clk 0:02:39]}  d5 {[%clk 0:02:05]} 11. e5 {[%clk 0:02:37]}  Ne4 {[%clk 0:02:05]} 12. Nc3 {[%clk 0:02:19]}  Nxc3 {[%clk 0:01:59]} 13. bxc3 {[%clk 0:02:18]}  Nc6 {[%clk 0:01:53]} 14. Rb1 {[%clk 0:02:12]}  Ba6 {[%clk 0:01:36]} 15. a4 {[%clk 0:02:10]}  bxa4 {[%clk 0:01:32]} 16. Bxa4 {[%clk 0:02:07]}  Na5 {[%clk 0:01:32]} 17. Bb5 {[%clk 0:01:25]}  Bc8 {[%clk 0:01:22]} 18. Qa4 {[%clk 0:01:14]}  a6 {[%clk 0:01:00]} 19. Bd3 {[%clk 0:01:07]}  Bd7 {[%clk 0:00:58]} 20. Qc2 {[%clk 0:01:04]}  Qc7 {[%clk 0:00:44]} 21. Ba3 {[%clk 0:01:01]}  Rfe8 {[%clk 0:00:39]} 22. Bc5 {[%clk 0:00:53]}  Nc4 {[%clk 0:00:37]} 23. Nd2 {[%clk 0:00:42]}  Nxe5 {[%clk 0:00:31]} 24. Bf1 {[%clk 0:00:30]}  Nc6 {[%clk 0:00:27]} 25. Rb6 {[%clk 0:00:25]}  Nxd4 {[%clk 0:00:15]} 26. cxd4 {[%clk 0:00:20]}  Bxd4 {[%clk 0:00:15]} 27. Rc1 {[%clk 0:00:17]}  Rec8 {[%clk 0:00:14]} 28. Rxa6 {[%clk 0:00:12]}  Rxa6 {[%clk 0:00:13]} 29. Bxd4 {[%clk 0:00:08]}  Qxc2 {[%clk 0:00:13]} 30. Rxc2 {[%clk 0:00:08]}  Rxc2 {[%clk 0:00:14]} 31. Bxa6 {[%clk 0:00:08]}  Rxd2 {[%clk 0:00:14]} 32. Be3 {[%clk 0:00:07]}  Rd1+ {[%clk 0:00:13]} 33. Kh2 {[%clk 0:00:07]}  d4 {[%clk 0:00:14]} 34. Bf4 {[%clk 0:00:05]}  d3 {[%clk 0:00:14]} 35. Bc4 {[%clk 0:00:04]}  Be6 {[%clk 0:00:13]} 36. Bb5 {[%clk 0:00:04]}  Bb3 {[%clk 0:00:12]} 37. Kg3 {[%clk 0:00:03]}  f6 {[%clk 0:00:13]} 38. h4 {[%clk 0:00:03]}  e5 {[%clk 0:00:13]} 39. Be3 {[%clk 0:00:04]}  Kf7 {[%clk 0:00:14]} 40. Ba6 {[%clk 0:00:03]}  Ke6 {[%clk 0:00:14]} 41. Kf3 {[%clk 0:00:03]}  Bd5+ {[%clk 0:00:13]} 42. Kg3 {[%clk 0:00:02]}  f5 {[%clk 0:00:14]} 43. Bc8+ {[%clk 0:00:02]}  Ke7 {[%clk 0:00:13]} 44. Ba6 {[%clk 0:00:03]}  f4+ {[%clk 0:00:13]} 45. Bxf4 {[%clk 0:00:03]}  exf4+ {[%clk 0:00:14]} 46. Kxf4 {[%clk 0:00:03]}  Bxg2 {[%clk 0:00:14]} 47. Ke3 {[%clk 0:00:03]}  Bf1 {[%clk 0:00:15]} 48. f4 {[%clk 0:00:03]}  Kf6 {[%clk 0:00:15]} 49. Bc4 {[%clk 0:00:03]}  Be2 {[%clk 0:00:15]} 50. Bb5 {[%clk 0:00:00]}  Rh1 {[%clk 0:00:12]} 0-1